Cogmind - Beta 13 @@@ ROGUE MODE // 2024.04.15 @ 20:12:33 Player: Exceptionally Mediocre Result: Destroyed by BB-ASW(R) with Subdweller Shrapnel Launcher Performance ------------- Evolutions (0) 0 Regions Visited (2) 400 Robots Destroyed (32) 160 Value Destroyed (932) 932 Prototype IDs (11) 220 Alien Tech Used (0) 0 Bonus (0) 0 TOTAL SCORE: 1712 Bonus ------- None Cogmind --------- Core Integrity 0/250 Matter 88/300 Energy 250/250 System Corruption 0% Temperature Cool (0) Movement Walking (200) Ox1 Location -10/Subcaves Parts ------- > --- POWER (1) -------- Ion Engine > --- PROPULSION (2) --- Cargo Legs > --- UTILITY (2) ------ Huge Storage Unit Targeting Computer > --- WEAPON (2) ------- Subdweller Shrapnel Launcher > --- INVENTORY (25) --- Light Ion Engine Subdweller Power Source Improved Treads Improved Treads Wheel Wheel Heat Sink High-capacity Matter Pod (200) Sensor Array Signal Interpreter Weapon Shielding Makeshift System Shield Riot Gun Particle Gun Subdweller Laser Subdweller Machine Gun Improved Light Cannon Improved Light Cannon Improved Light Cannon Battle Cannon Battle Cannon Multitool Heavy Hammer Heavy Hammer Peak State ------------ > --- POWER ------------ Ion Engine > --- PROPULSION ------- Cargo Legs > --- UTILITY ---------- Huge Storage Unit Targeting Computer Scrap Shield > --- WEAPON ----------- Makeshift Shrapnel Gun Subdweller Shrapnel Launcher > --- INVENTORY -------- Light Ion Engine Subdweller Power Source Improved Treads Improved Treads Improved Treads Wheel Wheel Heat Sink High-capacity Matter Pod Sensor Array Signal Interpreter Weapon Shielding Particle Gun Subdweller Laser Subdweller Machine Gun Improved Light Cannon Improved Light Cannon Improved Light Cannon Battle Cannon Battle Cannon Subdweller Shrapnel Launcher Multitool Heavy Hammer Heavy Hammer [Rating: 33] Favorites ----------- Power Ion Engine Engine Ion Engine Propulsion Improved Treads Treads Improved Treads Leg Improved Aluminum Leg Wheel Wheel Flight Unit Improved Flight Unit Utility Huge Storage Unit Device Improved Terrain Scanner Storage Huge Storage Unit Processor Targeting Computer Protection Scrap Shield Weapon Improved Light Cannon Energy Gun Medium Laser Ballistic Gun Light Assault Rifle Ballistic Cannon Improved Light Cannon Launcher Subdweller Shrapnel Launcher Impact Weapon Heavy Hammer Build | -11 -10 -10 ------- Run | Yrd Mat Sub Slots Evolved . | . . . Power . | . . . Propulsion . | . . . Utility . | . . . Weapon . | . . . Parts Attached 38 | 7 16 15 Power 4 | 1 1 2 Engine 4 | 1 1 2 Core . | . . . Reactor . | . . . Propulsion 14 | 2 10 2 Treads 3 | . 2 1 Leg 3 | . 2 1 Wheel 7 | 2 5 . Hover . | . . . Flight 1 | . 1 . Utility 6 | 2 2 2 Device 1 | 1 . . Storage 3 | 1 2 . Processor 1 | . . 1 Hackware . | . . . Protection 1 | . . 1 Artifact . | . . . Weapon 14 | 2 3 9 Energy Gun 1 | . 1 . Energy Cannon . | . . . Ballistic Gun 4 | 2 . 2 Ballistic Cannon 5 | . 2 3 Launcher 3 | . . 3 Special Weapon . | . . . Impact Weapon 1 | . . 1 Slashing Weapon . | . . . Piercing Weapon . | . . . Special Melee Weapon . | . . . Unidentified Prototypes 1 | . 1 . Parts Lost 9 | . 1 8 Power 2 | . . 2 Propulsion 2 | . 1 1 Utility 2 | . . 2 Weapon 3 | . . 3 Highest Loss Streak 3 | . 1 3 To Critical Strikes . | . . . Average Slot Usage (%) 97 | . 99 95 Engine 13 | . 14 13 Treads 13 | . . 22 Leg 4 | . 8 2 Wheel 7 | . 19 . Device 8 | . 14 4 Storage 13 | . 14 13 Processor 5 | . . 9 Protection 1 | . . 2 Energy Gun 3 | . 8 . Ballistic Gun 6 | . 10 4 Ballistic Cannon 14 | . 8 18 Launcher 2 | . . 3 Naked Turns . | . . . Heaviest Build 115 | 13 92 115 Greatest Support 55 | 20 46 55 Greatest Overweight (x) 6 | . 6 2 Average Overweight (x) 2 | . 3 1 Largest Inventory Capacity 25 | 8 25 25 Average Capacity 24 | 7 24 25 Most Carried 25 | 8 25 25 Average Carried 22 | 3 20 24 Final Capacity 25 | 8 25 25 Final Carried 25 | 8 25 24 Class Distribution -------------------- 86% | Mutant 13% | Scavenger-Mutant Dominant Class ---------------- Mutant | -10/Materials Mutant | -10/Subcaves Resources | -11 -10 -10 ----------- Run | Yrd Mat Sub Matter Collected 1234 | 302 454 478 Remotely . | . . . Salvage Created 854 | 101 579 174 Parts 51 | 11 31 9 Haulers Intercepted 2 | . 2 . Recyclers Shooed 1 | . 1 . Parts Field Recycled . | . . . Retrieved Matter . | . . . Parts Self-Destructed 14 | . . 14 Prevented . | . . . Kills | -11 -10 -10 ------- Run | Yrd Mat Sub Combat Hostiles Destroyed 22 | . 10 12 Guns 8 | . 6 2 Cannons 9 | . 4 5 AOE 5 | . . 5 Classes Destroyed 7 | 2 4 1 Builder 2 | . 2 . Tunneler 3 | 3 . . Hauler 2 | . 2 . Recycler 1 | 1 . . Watcher 2 | . 2 . Grunt 10 | . 10 . Subdweller 12 | . . 12 Best Kill Streak 3 | 3 2 3 Combat Bots Only 3 | . 2 3 Max Kills in Single Turn 2 | 1 1 2 Gunslinging . | . . . Exploded 2 | . . 2 Melee . | . . . Uniques/NPCs Destroyed . | . . . Combat | -11 -10 -10 -------- Run | Yrd Mat Sub Hostile Shots Fired 121 | . 43 78 Missed 38 | . 10 28 Damage Taken 1779 | . 407 1372 Core 276 | . 85 191 Absorbed by Shields . | . . . Core Remaining (%) 100 | 100 . . Volleys Fired 136 | 18 58 60 Largest 2 | 2 2 2 Hottest 78 | 40 78 78 Shots Fired 258 | 36 116 106 Gun 145 | 36 98 11 Cannon 106 | . 18 88 Launcher 7 | . . 7 Special . | . . . Kinetic 211 | 36 69 106 Thermal 47 | . 47 . Explosive . | . . . Electromagnetic . | . . . Robot Hit Streak 15 | 10 11 15 Robot Miss Streak 6 | 2 6 2 Penetration Max . | . . . Secondary Targets . | . . . Shots Hit Robots 158 | 28 60 70 Core Hits 59 | 7 30 22 Critical Kills . | . . . Critical Parts Destroyed 2 | 1 1 . Critical Strikes 8 | 1 6 1 Burn 3 | . 3 . Destroy 2 | 1 1 . Blast 3 | . 2 1 Melee Attacks 4 | . . 4 Impact 4 | . . 4 Slashing . | . . . Piercing . | . . . Sneak Attacks . | . . . Combat Hostiles . | . . . Follow-up Attacks . | . . . Damage Inflicted 2814 | 218 740 1856 Guns 925 | 218 525 182 Cannons 1127 | . 215 912 Explosions 762 | . . 762 Melee . | . . . Ramming . | . . . Kinetic 2501 | 218 427 1856 Thermal 313 | . 313 . Explosive . | . . . Electromagnetic . | . . . Impact . | . . . Slashing . | . . . Piercing . | . . . Highest Corruption . | . . . Average Corruption . | . . . Corruption Purged . | . . . Corruption Blocked . | . . . Overload Shots . | . . . Overflow Damage . | . . . Projectiles . | . . . Explosions . | . . . Melee . | . . . Knockbacks 12 | . 2 10 Impact . | . . . Kinetic 12 | . 2 10 Secondary . | . . . Self-Inflicted Damage 19 | . . 19 Shots 1 | . . 1 Rammed . | . . . Targets Rammed . | . . . Kicked . | . . . Crushed . | . . . Highest Temperature 169 | . 169 . Average Temperature 43 | . 43 . Received Heat Transfer 411 | . 249 162 Siege Activations . | . . . Robots Corrupted . | . . . Combat Hostiles . | . . . Parts Fried . | . . . Impact Corruptions . | . . . Robots Melted . | . . . Combat Hostiles . | . . . Parts Melted 2 | . 2 . Heat Transferred 1147 | . 1147 . Parts Sabotaged . | . . . Parts Stolen . | . . . Parts Stripped . | . . . Power Chain Reactions . | . . . Alert | -11 -10 -10 ------- Run | Yrd Mat Sub Peak Influence 151 | 20 151 . Initial 13 | . 13 . Average 62 | 6 67 . Maximum Alert Level . | . . . Low Security (%) 100 | 100 100 . Level 1 . | . . . Level 2 . | . . . Level 3 . | . . . Level 4 . | . . . Level 5 . | . . . High Security . | . . . Max Security . | . . . Squads Dispatched 4 | . 4 . Investigation 2 | . 2 . Extermination . | . . . Reinforcement 2 | . 2 . Assault . | . . . Garrison . | . . . Intercept . | . . . Searches Triggered . | . . . Construction Impeded . | . . . Haulers Reinforced . | . . . Active Scanning Responses . | . . . Cargo Convoy Interrupts . | . . . Stealth | -11 -10 -10 --------- Run | Yrd Mat Sub Distress Signals 1 | . 1 . Communications Jammed . | . . . Distress Signals . | . . . Times Spotted 31 | . 18 13 Peak Tracking Total 4 | . 3 4 Tactical Retreats . | . . . Traps | -11 -10 -10 ------- Run | Yrd Mat Sub Traps Triggered 5 | . 2 3 Indirectly . | . . . Trap Hack Attempts . | . . . Triggered . | . . . Disarmed . | . . . Reprogrammed . | . . . Reused . | . . . Traps Extracted . | . . . Installed . | . . . Triggered 1 | . . 1 Machines | -11 -10 -10 ---------- Run | Yrd Mat Sub Machines Disabled 1 | . . 1 Max in Single Turn 1 | . . 1 Machines Repaired . | . . . Machines Dismantled . | . . . Machines Sabotaged . | . . . Overloaded Fab Kills . | . . . Hacking | -11 -10 -10 --------- Run | Yrd Mat Sub Machines Accessed 6 | . 5 1 Terminals 3 | . 3 . Fabricators . | . . . Repair Stations . | . . . Recycling Units 2 | . 2 . Scanalyzers . | . . . Garrison Access . | . . . Total Hacks 15 | . 14 1 Successful 9 | . 8 1 Failed 6 | . 6 . Catastrophic 1 | . 1 . Database Lockouts . | . . . Manual 5 | . 5 . Terminals 9 | . 9 . Fabricators . | . . . Repair Stations . | . . . Recycling Units 5 | . 5 . Scanalyzers . | . . . Garrison Access . | . . . Terminal Hacks 4 | . 3 1 Robot Analysis 2 | . 2 . Level Access Points 1 | . 1 . Derelict Proto ID Bank 1 | . . 1 Fabricator Hacks . | . . . Repair Station Hacks . | . . . Recycling Unit Hacks 2 | . 2 . Retrieve Components 2 | . 2 . Scanalyzer . | . . . Garrison Access Hacks . | . . . Unauthorized Hacks 3 | . 3 . Terminals 3 | . 3 . Botnet 3 | . 3 . Fabricators . | . . . Repair Stations . | . . . Recycling Units . | . . . Scanalyzers . | . . . Garrison Access . | . . . Data Cores Recovered . | . . . Used . | . . . Hacking Detections 5 | . 5 . Full Trace Events . | . . . Feedback Events . | . . . Feedback Blocked . | . . . Robot Schematics Acquired . | . . . Robots Built . | . . . Authchips . | . . . Time . | . . . Total Robot Build Rating . | . . . Part Schematics Acquired . | . . . Parts Built . | . . . Authchips . | . . . Time . | . . . Total Part Build Rating . | . . . Parts Repaired . | . . . Time . | . . . Parts Recycled . | . . . Recycled Matter . | . . . Retrieved Matter . | . . . Retrieved Components 7 | . 7 . Parts Scanalyzed . | . . . Part Schematics Acquired . | . . . Parts Damaged . | . . . Bothacking | -11 -10 -10 ------------ Run | Yrd Mat Sub Used RIF Installer . | . . . Robots Hacked . | . . . Non-combat . | . . . Combat . | . . . Robot Hacks Applied . | . . . Relay Couplers Released . | . . . Fabnet Peak Effective % . | . . . Robots Rewired . | . . . Allies Hacked . | . . . Hacks Repelled . | . . . Allies | -11 -10 -10 -------- Run | Yrd Mat Sub Total Allies . | . . . Largest Group . | . . . Highest-Rated Group . | . . . Highest-Rated Ally . | . . . Total Orders . | . . . Ally Attacks . | . . . Total Damage . | . . . Kills . | . . . Allies Corrupted . | . . . Allies Melted . | . . . Intel | -11 -10 -10 ------- Run | Yrd Mat Sub Robot Analysis Total 2 | . 2 . Derelict Logs Recovered . | . . . Drone Launches . | . . . Drone Recoveries . | . . . Exploration | -11 -10 -10 ------------- Run | Yrd Mat Sub Turns Passed 3478 | 116 1339 2023 Spaces Moved 1415 | 64 651 700 Core 7 | 7 . . Treads 543 | . 2 541 Legs 266 | . 107 159 Wheels 599 | 57 542 . Hover . | . . . Flight . | . . . Fastest Speed 50 | 50 80 200 Average Speed 209 | 76 170 257 Slowest Speed 540 | 80 540 320 Overloaded Moves . | . . . Propulsion Burnouts . | . . . Robots Hopped . | . . . Cave-ins Triggered . | . . . Exploration Rate (%) 46 | 4 80 54 Regions Visited 2 Branch Regions 1 Pre-discovered Areas . | . . . Known Exits Taken . | . . . Unknown Exits Taken 2 | 1 1 . Scrap Searched 9 | . . 9 Spaces Dug . | . . . Terrain Destroyed 64 | . . 64 Melee . | . . . Projectile . | . . . AOE 64 | . . 64 Terrain Rammed . | . . . Walls Destroyed . | . . . Machines Disabled . | . . . Actions | -11 -10 -10 --------- Run | Yrd Mat Sub Total 1691 | 99 782 810 Wait 10 | . 8 2 Move 1413 | 63 650 700 Hop . | . . . Pick Up 55 | 10 29 16 Fast Attach 11 | 6 4 1 Attach 9 | 1 1 7 Detach 3 | . 2 1 Swap 18 | . 11 7 Drop 32 | 1 19 12 Fire 136 | 18 58 60 Melee 4 | . . 4 Ram . | . . . Kick . | . . . Crush . | . . . Escape Stasis . | . . . Rewire . | . . . Trap . | . . . Miscellaneous . | . . . Route ------- -11/Scrapyard -10/Materials (discovered 5 exits: *Mat x3 / [*Min] / *Sub) -10/Subcaves (discovered 2 exits: [*Mat x2]) History --------- Turn | Location | Event 11 | -11/Scrapyard | Discovered new exit (range 15) 117 | -11/Scrapyard | Entered Materials 259 | -10/Materials | Discovered new exit (range 16) 306 | -10/Materials | Build established: Mutant 561 | -10/Materials | Discovered new exit (range 16) 994 | -10/Materials | Discovered new exit (range 13) 1131 | -10/Materials | Discovered new exit (range 5) 1171 | -10/Materials | Identified exit to Materials 1271 | -10/Materials | Build established: Scavenger-Mutant 1363 | -10/Materials | Discovered new exit (range 4) 1456 | -10/Materials | Entered Subcaves 1602 | -10/Subcaves | Discovered new exit (range 14) 1745 | -10/Subcaves | Build established: Mutant 1980 | -10/Subcaves | Shifting Twisted Machinery released Battle Cannon 1987 | -10/Subcaves | Shifting Twisted Machinery released Multitool 2674 | -10/Subcaves | A swath of the cavern ceiling suddenly collapsed 2703 | -10/Subcaves | Discovered new exit (range 14) 3025 | -10/Subcaves | Visited 4L-MR0's lab 3072 | -10/Subcaves | Found Cargo Legs 3073 | -10/Subcaves | Attached Cargo Legs, gained temporary slots: Utility x2 3267 | -10/Subcaves | Core integrity fell below 50% 3473 | -10/Subcaves | Core integrity fell below 20% 3479 | -10/Subcaves | Destroyed by BB-ASW(R) with Subdweller Shrapnel Launcher Last Messages --------------- 03315_ Searching scrap... 03315_ Found Flamer. 03315_ Found Riot Gun. 03315_ Found 23 Matter. 03316_ Acquired 23 matter. 03317_ Searching scrap... 03317_ Found Mak. System Shield. 03317_ Found 15 Matter. 03318_ Acquired 15 matter. 03325_ Acquired Mak. System Shield. 03328_ Dropped Imp. Treads. 03329_ Acquired Riot Gun. 03465_ Scrap Shield destroyed. 03466_ Temporary Utility slot lost. 03467_ BB-ASW(R): "ARGHSUB!" 03468_ Sub. Shrapnel Launcher destroyed. 03470_ KA-V71(R) destroyed. 03470_ IF-CYR(R) destroyed. 03473_ PB-VD7(R) destroyed. 03477_ Mak. Shrapnel Gun destroyed. Map ----- +----------------------------------------------------+ | # "" # # #### ## #?????????????? | | # "" #??????#??## #?????????????? | | # ############??????????## ##????????????? | | ######??????????????????????# #????????????? | | ????????????????????????????# #????????????? | | ????????????????????????????## ###????????????? | | ?????????????????????????????## # #?????????????? | | ??????????????????????????????## #?????????????? | | ???????????????????????????????# #?????????????? | | ??????????????????????????????## #?????????????? | | ??????????????????????????????# ##?????????????? | | ??????????????????????????????## #?????????????? | | ???????????????????????????????# ##?????????????? | | ???????????????????????????????# #?????????????? | | ??????????????????????????????## #?????????????? | | ?????????????????????????????## ##?????????????? | | ????????????????????????????## ##?????????????? | | ???????????????????????###### #?????????????? | | ??????????????????????## ##?????????????? | | ??????????????????????# ###??????????????? | | ????????????????????### ;##???????????????? | | ????????????????????# ;; ;;###?????????????? | | ????????????????????# #?????????????? | | ???????????????### # ##?????????????? | | ???????????????# #??????????????? | | ?????????????# ; ; @ #??????????????? | | ????????????# R #?????????????? | | ?????????? ; #????????????? | | ??????????? #????????????? | | ??????????? #????????????? | | ???????????? ;##* ## ##????????????? | | ???????????? !&% ;#?=% ##?####?????????????? | | ???????????? %[ ?? ! ???????????????????? | | ?????????????* %??? ??????????????????? | | ????????????? #??? % ??????????????????? | | ??????????????##;;#;???? ## ?????????????????? | | ???????????????####????? ?## ?????????????????? | | ???????????????????????? #??? ????????????????? | | ????????????????????????# ????? ????????????????? | | ????????????????????????? ??????????????????????? | | ????????????????????????? ??????????????????????? | | ?????????????????????????????????????????????????? | | ?????????????????????????????????????????????????? | | ?????????????????????????????????????????????????? | | ?????????????????????????????????????????????????? | | ?????????????????????????????????????????????????? | | ?????????????????????????????????????????????????? | | ?????????????????????????????????????????????????? | | ?????????????????????????????????????????????????? | | ?????????????????????????????????????????????????? | +----------------------------------------------------+ Best States ------------- Heat Dissipation 25 Energy Generation 10 Energy Capacity 250 Matter Stores 300 Matter Capacity 300 Sight Range 16 Terrain Scan Range 16 Terrain Scan Density 10 Armor Coverage 800 Evasion (%) 44 Targeting Accuracy 5 Recoil Reduction 2 Item Schematics ----------------- None Robot Schematics ------------------ None Fabricated ------------ Nothing Alien Tech Used ----------------- None Achievements -------------- None Challenges ------------ None Game ------ Seed HypervelocityWaveCutter Manual? 0 Play Time 00:25:02 Cumulative 61.0 hours Start 2024.04.15 @ 19:43:41 End 2024.04.15 @ 20:12:33 Sessions 1 Manual Loads 0 Difficulty Rogue Special Mode None Game No. 71 Rogue 71 Adventurer 0 Explorer 0 Win Type - Total 0 Types 0/0/0/0/0/0/0/0/0 Lore% 18 Gallery% 39 Achievement% 29 Wizard Run 0 Options --------- Layout 1 ASCII 0 Keyboard 1 Movement Vi Keybinds 0 Fullscreen 1 Font 24/Smallcaps Map View 50x35 Zoom Use 0% Tactical HUD 1 Map Filters NONE Filters NONE Steam 1 RUN: cf1ff26a-30f9-4174-bd81-58c0453785ac